fUSD/lending_fUSD_20240611
["ID","MTS","AMOUNT","RATE_DAILY","PERIOD"]
[329150034,1718139962764,1004.13873148,0.0001,6]
[329150035,1718140145219,-295.89091456,9.496e-05,2]
[329150036,1718140145241,-186.11592372,9.497e-05,2]
[329150037,1718140145262,-163.85,9.498e-05,2]
[329150038,1718140145284,-205.70870175,9.548e-05,2]
[329150039,1718140145306,-171.92,9.55e-05,2]
[329150040,1718140145329,-1467.0,9.858e-05,2]
[329150041,1718140145353,-883.18364873,9.859e-05,2]
[329150042,1718140145378,-162.36595757,9.923e-05,2]
[329150043,1718140145402,-826.16,0.00010477,2]
[329150044,1718140145424,-299.99,0.00010477,2]
[329150045,1718140145463,-499.99,0.00010477,2]
[329150046,1718140145493,-150.0,0.00010496,2]
[329150047,1718140145760,-7740.03294745,0.00010497,2]
[329150048,1718140164364,-399.939739,0.00010424,2]
[329150049,1718140164453,-50.060261,0.00010497,2]
[329150072,1718140232515,-343.90316993,0.00010497,2]
[329150073,1718140232527,-1322.42567314,0.00010499,2]
[329150074,1718140232538,-884.02,0.00010499,2]
[329150075,1718140232554,-210.0,0.00011546,2]
[329150076,1718140232575,-295.69,0.00011846,2]
[329150077,1718140232589,-566.56,0.00011883,2]
[329150078,1718140232604,-250.0,0.00011937,2]
[329150079,1718140232617,-226.58,0.00012003,2]
[329150080,1718140232630,-295.89091456,0.00012061,2]
[329150081,1718140232641,-2670.91,0.00012062,2]
[329150082,1718140232652,-600.0,0.00012068,2]
[329150083,1718140232666,-2674.56,0.0001207,2]
[329150084,1718140232678,-164.74,0.00012219,2]
[329150085,1718140232691,-164.74,0.00012252,2]
[329150086,1718140232702,-164.74,0.00012286,2]
[329150087,1718140232713,-164.74,0.00012319,2]
[329150088,1718140232723,-164.74,0.00012353,2]
[329150089,1718140232736,-164.74,0.00012386,2]
[329150090,1718140232749,-162.36595756,0.00012412,2]
[329150091,1718140232764,-164.74,0.0001242,2]
[329150092,1718140232775,-164.74,0.00012453,2]
[329150093,1718140232787,-1837.49,0.00012471,2]
[329150094,1718140232797,-164.74,0.00012487,2]
[329150095,1718140232866,-164.74,0.0001252,2]
[329150096,1718140232880,-164.74,0.00012554,2]
[329150097,1718140232901,-250.0,0.00012572,2]
[329150098,1718140232918,-164.74,0.00012587,2]
[329150099,1718140232937,-164.74,0.00012621,2]
[329150100,1718140232957,-400.0,0.00012648,2]
[329150101,1718140232971,-164.74,0.00012655,2]
[329150102,1718140232986,-164.74,0.00012688,2]
[329150103,1718140233012,-2931.97,0.00012698,2]
[329150104,1718140233023,-200.0,0.00012699,2]
[329150105,1718140233040,-293.0,0.000127,2]
[329150106,1718140233057,-164.74,0.00012722,2]
[329150107,1718140233072,-826.16,0.00012741,2]
[329150108,1718140233089,-164.74,0.00012755,2]
[329150109,1718140233102,-164.74,0.00012789,2]
[329150110,1718140233115,-164.74,0.00012822,2]
[329150111,1718140233131,-886.26256298,0.00012822,2]
[329150112,1718140233148,-155.0,0.00012822,2]
[329150113,1718140233167,-167.57624783,0.00012823,2]
[329150114,1718140233182,-205.70870175,0.00012823,2]
[329150115,1718140233218,-23900.0,0.00012824,2]
[329150116,1718140233236,-164.74,0.00012856,2]
[329150117,1718140233255,-600.0,0.00013576,2]
[329150118,1718140233280,-200.0,0.00013699,2]
[329150119,1718140233309,-971.93,0.00013699,2]
[329150120,1718140233324,-1070.77,0.00013699,2]
[329150121,1718140233337,-175.78,0.00013699,2]
[329150122,1718140233354,-752.83867739,0.000139,2]
[329150123,1718140233372,-411.0,0.0001397,2]
[329150126,1718140233400,-400.0,0.00014229,2]
[329150128,1718140233420,-163.85,0.00014247,2]
[329150130,1718140233437,-171.92,0.00014325,2]
[329150132,1718140233455,-27495.01257078,0.00014755,2]
[329150134,1718140233471,-2138.57685314,0.00014756,2]
[329150136,1718140233484,-2674.56,0.0001481,2]
[329150138,1718140233502,-6752.93775625,0.0001485,2]
[329150139,1718140233522,-104787.0889,0.00014899,2]
[329150141,1718140233545,-179.77556321,0.000149,2]
[329150142,1718140233557,-390.3414821,0.000149,2]
[329150144,1718140233574,-171.62648009,0.000149,2]
[329150146,1718140233595,-162.36595756,0.000149,2]
[329150148,1718140233606,-300.0,0.000149,5]
[329150149,1718140233618,-3988.24294074,0.000149,2]
[329150151,1718140233633,-315.82992977,0.000149,2]
[329150152,1718140233645,-172.18062895,0.000149,2]
[329150153,1718140233658,-216.18844803,0.00014989,2]
[329150154,1718140233672,-152.26,0.00014989,2]
[329150155,1718140233695,-152.26,0.0001499,2]
[329150156,1718140233706,-253.54627136,0.00014997,2]
[329150157,1718140233718,-1625.52061624,0.00014997,2]
[329150158,1718140233730,-210.482296,0.00014997,2]
[329150159,1718140233746,-155.0,0.00014997,2]
[329150160,1718140233760,-283.00457355,0.00014998,2]
[329150161,1718140233771,-155.0,0.00014998,2]
[329150162,1718140233783,-334.29552451,0.00014998,2]
[329150163,1718140233793,-155.0,0.00014998,2]
[329150165,1718140233811,-234.66667933,0.00014998,2]
[329150166,1718140233823,-166.69758772,0.00014998,2]
[329150167,1718140233837,-162.67638864,0.00014998,2]
[329150169,1718140233849,-506.89879856,0.00014998,2]
[329150170,1718140233860,-161.63825425,0.00014998,2]
[329150171,1718140233871,-201.70944499,0.00014998,2]
[329150172,1718140233881,-2195.01899183,0.00014998,2]
[329150173,1718140233894,-268.79574159,0.00014998,2]
[329150174,1718140233905,-2351.166636,0.00014998,2]
[329150175,1718140233920,-263.89187326,0.00014998,2]
[329150176,1718140233931,-645.94306177,0.00014998,2]
[329150177,1718140233943,-163.3366024,0.00014998,2]
[329150178,1718140233954,-155.0,0.00014999,2]
[329150179,1718140233966,-345.77981054,0.00014999,2]
[329150180,1718140233978,-525.50104401,0.00014999,2]
[329150181,1718140233990,-364.20577069,0.00014999,2]
[329150182,1718140234003,-296.86150818,0.00014999,2]
[329150183,1718140234013,-73431.89422736,0.00014999,2]
[329150184,1718140234028,-264.00369996,0.00014999,2]
[329150185,1718140234041,-1311.60566072,0.00014999,2]
[329150186,1718140234055,-778.63384695,0.00014999,2]
[329150187,1718140234072,-4205.98716292,0.00014999,2]
[329150188,1718140234096,-4125.0000005,0.00014999,2]
[329150189,1718140234300,-2015.29501095,0.00014999,2]
[329150190,1718140234314,-691.95,0.00014999,2]
[329150191,1718140234328,-5018.83705891,0.00014999,2]
[329150192,1718140234353,-673.43302,0.00014999,2]
[329150193,1718140234368,-2253.71037969,0.00014999,2]
[329150194,1718140234392,-6336.6456329,0.00014999,2]
[329150195,1718140234460,-3655.23039409,0.00014999,2]
[329150196,1718140234499,-8698.57941669,0.00014999,2]
[329150197,1718140234525,-3252.16784281,0.00014999,2]
[329150198,1718140234540,-747.562701,0.00014999,2]
[329150199,1718140234598,-3488.42895453,0.00014999,2]
[329150200,1718140234611,-6915.4085,0.00014999,2]
[329150201,1718140234624,-538.88,0.00014999,2]
[329150202,1718140234828,-1293.68308714,0.00014999,2]
[329150203,1718140234846,-2708.4,0.00014999,2]
[329150204,1718140234859,-2091.27912999,0.00014999,2]
[329150205,1718140234876,-1782.00032808,0.00014999,2]
[329150206,1718140234891,-2131.10060352,0.00014999,2]
[329150208,1718140238632,-19568.65825351,0.00010498,2]
[329150209,1718140238645,-2712.42751602,0.00014999,2]
[329150210,1718140238658,-1703.41591,0.00014999,2]
[329150211,1718140238672,-3837.73961237,0.00014999,2]
[329150212,1718140238685,-344.85876463,0.00014999,2]
[329150213,1718140238699,-675.40068488,0.00014999,2]
[329150214,1718140238711,-40521.49943168,0.00014999,2]
[329150215,1718140238724,-804.4421225,0.00014999,2]
[329150216,1718140238737,-25532.3974165,0.00014999,2]
[329150217,1718140238750,-670.31329616,0.00014999,2]
[329150218,1718140238849,-395474.97375573,0.00014999,2]
[329150219,1718140238860,-120804.69658785,0.00015,2]
[329150224,1718140240830,-2095.4278427,0.00015,2]
[329150225,1718140241707,-340.0090999,0.00015,2]
[329150226,1718140241721,-953.445,0.00015,2]
[329150227,1718140241848,-1009.71667059,0.00015,2]
[329150228,1718140241864,-153534.14805211,0.00015,2]
[329150229,1718140241875,-1047.27117705,0.00015,2]
[329150230,1718140241888,-2980.7362,0.00015,2]
[329150231,1718140241900,-18969.98894147,0.00015,2]
[329150232,1718140241913,-2000.0,0.00015,2]
[329150233,1718140241926,-1042.87918512,0.00015,2]
[329150234,1718140241940,-200.0,0.00015,2]
[329150235,1718140241954,-2000.0,0.00015,2]
[329150236,1718140241967,-200.0,0.00015,2]
[329150237,1718140241977,-2000.0,0.00015,2]
[329150238,1718140241991,-200.0,0.00015,2]
[329150239,1718140242003,-3000.0,0.00015,2]
[329150240,1718140242014,-2000.0,0.00015,2]
[329150241,1718140242025,-200.0,0.00015,2]
[329150242,1718140242038,-826.16,0.00015005,2]
[329150243,1718140242049,-600.0,0.00015084,2]
[329150244,1718140242060,-2000.0,0.0001515,2]
[329150245,1718140242076,-200.0,0.0001515,2]
[329150246,1718140242089,-2000.0,0.0001515,2]
[329150247,1718140242103,-200.0,0.0001515,2]
[329150248,1718140242115,-2000.0,0.0001515,2]
[329150249,1718140242126,-200.0,0.0001515,2]
[329150250,1718140242137,-1062.47162003,0.00015301,2]
[329150251,1718140242149,-2000.0,0.00015301,2]
[329150252,1718140242161,-200.0,0.00015301,2]
[329150253,1718140242172,-2000.0,0.00015301,2]
[329150254,1718140242186,-200.0,0.00015301,2]
[329150255,1718140242205,-274.0,0.00015367,2]
[329150256,1718140242220,-2000.0,0.00015455,2]
[329150257,1718140242231,-200.0,0.00015455,2]
[329150258,1718140242243,-200.0,0.00015455,2]
[329150259,1718140242266,-400.0,0.0001581,2]
[329150260,1718140242285,-3988.24294074,0.00016045,2]
[329150261,1718140242296,-315.82992977,0.0001609,2]
[329150262,1718140242307,-175.78,0.00016438,2]
[329150263,1718140242322,-600.0,0.00016593,2]
[329150264,1718140242333,-172.18062891,0.00016629,2]
[329150265,1718140242359,-179.96,0.00016712,2]
[329150266,1718140242380,-700.0,0.000169,6]
[329150268,1718140242404,-390.34148207,0.00016903,2]
[329150271,1718140242436,-169.7,0.00016921,2]
[329150272,1718140242450,-224.23,0.00016921,2]
[329150274,1718140242461,-171.62648005,0.00017075,2]
[329150276,1718140242474,-3988.24294074,0.00017189,2]
[329150278,1718140242491,-826.16,0.00017269,2]
[329150280,1718140242504,-315.82992977,0.0001728,2]
[329150282,1718140242516,-400.0,0.00017391,2]
[329150286,1718140242544,-2674.56,0.00017549,2]
[329150287,1718140242557,-2402.0,0.00018,2]
[329150289,1718140242568,-800.0,0.00018,2]
[329150290,1718140242579,-600.0,0.00018101,2]
[329150291,1718140242590,-3988.24294074,0.00018334,2]
[329150292,1718140242601,-172.18062891,0.00018359,2]
[329150293,1718140242616,-315.82992977,0.0001847,2]
[329150294,1718140242627,-390.34148207,0.00018907,2]
[329150295,1718140242638,-400.0,0.00018972,2]
[329150296,1718140242650,-404.25444153,0.00019178,2]
[329150297,1718140242664,-500.0,0.00019178,2]
[329150298,1718140242676,-211.01184066,0.00019178,2]
[329150299,1718140242687,-500.0,0.00019178,2]
[329150300,1718140242702,-500.0,0.00019178,2]
[329150301,1718140242714,-280.95840983,0.00019178,2]
[329150302,1718140242727,-574.31646456,0.00019178,2]
[329150303,1718140242740,-1000.0,0.00019178,2]
[329150304,1718140242754,-1000.0,0.00019178,2]
[329150305,1718140242766,-1000.0,0.00019178,2]
[329150306,1718140242778,-1000.0,0.00019178,2]
[329150307,1718140242789,-1000.0,0.00019178,2]
[329150308,1718140242800,-1000.0,0.00019178,2]
[329150309,1718140242811,-1000.0,0.00019178,2]
[329150310,1718140242822,-1000.0,0.00019178,2]
[329150311,1718140242838,-1000.0,0.00019178,2]
[329150312,1718140242849,-1000.0,0.00019178,2]
[329150313,1718140242861,-1000.0,0.00019178,2]
[329150314,1718140242872,-1000.0,0.00019178,2]
[329150315,1718140242884,-176.0,0.00019178,2]
[329150316,1718140242897,-971.93,0.00019178,2]
[329150317,1718140242915,-171.62648005,0.00019249,2]
[329150318,1718140242926,-3988.24294074,0.00019479,2]
[329150319,1718140242940,-826.16,0.00019533,2]
[329150320,1718140242952,-315.82992977,0.0001966,2]
[329150321,1718140242964,-151.0,0.00019673,2]
[329150322,1718140242977,-152.26,0.0001999,2]
[329150323,1718140242992,-4479.0,0.0002,2]
[329150324,1718140243004,-155.0,0.0002,2]
[329150325,1718140243015,-1981.57791662,0.0002,2]
[329150326,1718140243026,-548.88492439,0.0002,2]
[329150327,1718140243038,-1053.26023882,0.0002,2]
[329150328,1718140243050,-6258.42600459,0.0002,2]
[329150329,1718140243065,-262.96555812,0.0002,2]
[329150330,1718140243077,-3000.0,0.0002,2]
[329150331,1718140243094,-150.0,0.0002008,2]
[329150332,1718140243108,-172.18062891,0.00020088,2]
[329150333,1718140243121,-226.7178388,0.000201,2]
[329150334,1718140243135,-150.0,0.00020104,2]
[329150335,1718140243147,-150.0,0.00020132,2]
[329150336,1718140243160,-925.14861312,0.00020307,2]
[329150337,1718140243171,-150.0,0.00020311,2]
[329150338,1718140243183,-150.0,0.0002039,2]
[329150339,1718140243209,-11740.0,0.000204,3]
[329150340,1718140243221,-151.0,0.00020445,2]
[329150341,1718140243233,-1500.0,0.00020558,2]
[329150342,1718140243250,-3988.24294074,0.00020624,2]
[329150343,1718140243266,-150.0,0.00020661,2]
[329150344,1718140243290,-150.0,0.00020692,2]
[329150345,1718140243307,-5785.0,0.00020712,2]
[329150346,1718140243328,-327.3,0.00020712,2]
[329150347,1718140243346,-1573.0,0.00020712,2]
[329150348,1718140243361,-5156.0,0.00020712,2]
[329150349,1718140243379,-1194.0,0.00020712,2]
[329150350,1718140243396,-2779.03095105,0.00020712,2]
[329150351,1718140243413,-1899.99999999,0.00020712,2]
[329150352,1718140243520,-1048.0,0.00020712,2]
[329150353,1718140243536,-260.91319278,0.00020712,2]
[329150354,1718140243624,-6242.66587894,0.00020712,2]
[329150355,1718140243637,-416.486811,0.00020712,2]
[329150356,1718140243650,-601.1347338,0.00020712,2]
[329150357,1718140243685,-1374.40791963,0.00020712,2]
[329150358,1718140243698,-458.33296305,0.00020712,2]
[329150410,1718140245252,-1216.49734255,0.00020712,2]
[329150413,1718140245266,-21772.53020721,0.00020712,2]
[329150415,1718140245277,-613.386,0.00020712,2]
[329150417,1718140245288,-150.0,0.00020741,2]
[329150419,1718140245299,-1500.0,0.00020744,2]
[329150421,1718140245309,-150.0,0.00020749,2]
[329150423,1718140245320,-150.0,0.00020754,2]
[329150425,1718140245330,-150.0,0.00020765,2]
[329150427,1718140245341,-300.0,0.00020774,2]
[329150429,1718140245351,-315.82992977,0.0002085,2]
[329150431,1718140245362,-150.0,0.00020877,2]
[329150433,1718140245372,-1759.9446447,0.000209,5]
[329150447,1718140245530,-667.76472037,0.000209,5]
[329150450,1718140245542,-326.82220256,0.000209,5]
[329150452,1718140245554,-8985.46843237,0.000209,5]
[329150454,1718140245564,-390.34148207,0.0002091,2]
[329150456,1718140245574,-300.0,0.00020918,2]
[329150458,1718140245584,-1500.0,0.00020985,2]
[329150460,1718140245593,-201.475738,0.00021,2]
[329150462,1718140245604,-150.0,0.0002103,2]
[329150464,1718140245613,-150.0,0.0002103,2]
[329150466,1718140245623,-150.0,0.00021053,2]
[329150468,1718140245633,-150.0,0.00021087,2]
[329150470,1718140245644,-150.0,0.00021124,2]
[329150472,1718140245653,-1500.0,0.00021128,2]
[329150474,1718140245663,-150.0,0.00021141,2]
[329150476,1718140245673,-150.0,0.00021153,2]
[329150478,1718140245683,-150.0,0.00021154,2]
[329150480,1718140245693,-150.0,0.00021176,2]
[329150482,1718140245704,-150.0,0.00021202,2]
[329150484,1718140245714,-151.0,0.00021217,2]
[329150486,1718140245728,-150.0,0.00021311,2]
[329150488,1718140245739,-150.0,0.00021394,2]
[329150490,1718140245750,-150.0,0.00021405,2]
[329150492,1718140245760,-171.62648005,0.00021424,2]
[329150494,1718140245771,-150.0,0.00021428,2]
[329150496,1718140245781,-150.0,0.00021484,2]
[329150498,1718140245791,-1005.06568756,0.00021526,2]
[329150500,1718140245802,-301.22632833,0.00021526,2]
[329150502,1718140245812,-200.0,0.0002157,2]
[329150504,1718140245823,-1100.0,0.000216,7]
[329150506,1718140245834,-600.0,0.00021603,2]
[329150508,1718140245845,-383.92824188,0.00021603,2]
[329150510,1718140245859,-216.07175812,0.00021603,2]
[329150512,1718140245869,-238.17862197,0.00021615,2]
[329150514,1718140245881,-3198.15287891,0.00021615,2]
[329150516,1718140245892,-537.72037607,0.00021615,2]
[329150518,1718140245903,-150.0,0.00021625,2]
[329150520,1718140245917,-417.53,0.00021659,2]
[329150522,1718140245927,-356.52488764,0.00021659,2]
[329150525,1718140245940,-434.86117683,0.00021659,2]
[329150527,1718140245954,-59.67393553,0.00021659,2]
[329150529,1718140245967,-417.53,0.00021659,2]
[329150531,1718140245980,-851.06,0.00021659,2]
[329150533,1718140245990,-417.53,0.00021659,2]
[329150535,1718140246000,-417.53,0.00021659,2]
[329150537,1718140246011,-1500.0,0.000217,7]
[329150539,1718140246023,-1000.0,0.000217,2]
[329150542,1718140246034,-150.0,0.00021709,2]
[329150544,1718140246045,-150.0,0.00021711,2]
[329150546,1718140246055,-150.0,0.00021712,2]
[329150548,1718140246067,-150.0,0.00021713,2]
[329150550,1718140246077,-150.0,0.00021714,2]
[329150552,1718140246087,-7500.0,0.00021717,2]
[329150554,1718140246098,-150.0,0.00021718,2]
[329150556,1718140246109,-150.0,0.00021718,2]
[329150558,1718140246119,-150.0,0.00021721,2]
[329150559,1718140246129,-150.0,0.00021721,2]
[329150562,1718140246148,-150.0,0.00021725,2]
[329150564,1718140246158,-150.0,0.00021727,2]
[329150566,1718140246168,-150.0,0.00021728,2]
[329150568,1718140246180,-150.0,0.00021729,2]
[329150570,1718140246204,-300.0,0.0002173,2]
[329150572,1718140246219,-150.0,0.0002173,2]
[329150574,1718140246229,-150.0,0.0002173,2]
[329150576,1718140246239,-150.0,0.00021739,2]
[329150578,1718140246250,-150.0,0.00021741,2]
[329150580,1718140246263,-200.0,0.00021742,2]
[329150582,1718140246273,-500.0,0.00021742,2]
[329150584,1718140246283,-200.0,0.00021742,2]
[329150586,1718140246294,-150.0,0.00021742,2]
[329150588,1718140246305,-150.0,0.00021743,2]
[329150590,1718140246315,-150.0,0.00021744,2]
[329150592,1718140246326,-150.0,0.00021749,2]
[329150594,1718140246336,-150.0,0.00021749,2]
[329150596,1718140246347,-150.0,0.00021752,2]
[329150598,1718140246358,-150.0,0.00021759,2]
[329150600,1718140246369,-3988.24294074,0.00021768,2]
[329150602,1718140246380,-150.0,0.00021771,2]
[329150604,1718140246390,-150.0,0.00021773,2]
[329150606,1718140246401,-150.0,0.00021774,2]
[329150608,1718140246412,-150.0,0.00021774,2]
[329150610,1718140246423,-150.0,0.00021778,2]
[329150612,1718140246433,-150.0,0.00021779,2]
[329150614,1718140246444,-422.78,0.00021781,2]
[329150616,1718140246459,-1049.26,0.00021781,2]
[329150617,1718140246470,-146.39312373,0.00021781,2]
[329150618,1718140246538,-0.00594103,0.00021781,2]
[329150621,1718140246570,-560.66093524,0.00021781,2]
[329150623,1718140246581,-150.0,0.00021781,2]
[329150625,1718140246593,-164.25,0.00021781,2]
[329150627,1718140246606,-203.16906006,0.00021781,2]
[329150629,1718140246625,-219.61093994,0.00021781,2]
[329150631,1718140246637,-150.0,0.00021781,2]
[329150633,1718140246649,-164.25,0.00021781,2]
[329150635,1718140246663,-422.78,0.00021781,2]
[329150637,1718140246677,-138.72677127,0.00021781,2]
[329150639,1718140246694,-25.52322873,0.00021781,2]
[329150641,1718140246712,-150.0,0.00021781,2]
[329150642,1718140246730,-215.0,0.00021781,2]
[329150645,1718140246743,-150.0,0.00021794,2]
[329150647,1718140246754,-826.16,0.00021797,2]
[329150650,1718140246782,-150.0,0.00021797,2]
[329150651,1718140246795,-301.01734805,0.00021798,2]
[329150653,1718140246808,-23.05933472,0.00021798,2]
[329150656,1718140246832,-126.94066528,0.00021798,2]
[329150658,1718140246849,-150.0,0.00021799,2]
[329150660,1718140246861,-1900.0,0.000218,7]
[329150662,1718140246873,-1038.0,0.000218,2]
[329150664,1718140246887,-150.0,0.00021804,2]
[329150667,1718140246900,-150.0,0.00021804,2]
[329150669,1718140246913,-150.0,0.00021805,2]
[329150671,1718140246925,-150.0,0.00021809,2]
[329150673,1718140246935,-150.0,0.00021816,2]
[329150675,1718140246948,-8999.35397871,0.00021817,2]
[329150677,1718140246963,-1000.64602129,0.00021817,2]
[329150679,1718140246974,-846.79390671,0.00021817,2]
[329150681,1718140246991,-153.20609329,0.00021817,2]
[329150684,1718140247004,-202.9915359,0.00021817,2]
[329150686,1718140247018,-172.18062891,0.00021817,2]
[329150688,1718140247029,-6463.72793152,0.00021818,2]
[329150690,1718140247040,-28.24085153,0.00021818,2]
[329150692,1718140247055,-3664.38148745,0.00021818,2]
[329150694,1718140247065,-150.0,0.00021825,2]
[329150696,1718140247077,-150.0,0.00021828,2]
[329150698,1718140247088,-150.0,0.0002183,2]
[329150700,1718140247099,-150.0,0.00021832,2]
[329150702,1718140247110,-150.0,0.00021833,2]
[329150704,1718140247122,-150.0,0.00021838,2]
[329150706,1718140247135,-150.0,0.00021839,2]
[329150708,1718140247149,-150.0,0.00021846,2]
[329150710,1718140247160,-307.25308838,0.00021857,2]
[329150712,1718140247172,-150.0,0.00021857,2]
[329150714,1718140247183,-150.0,0.00021864,2]
[329150717,1718140247201,-150.0,0.00021865,2]
[329150718,1718140247221,-150.0,0.00021867,2]
[329150721,1718140247239,-150.0,0.00021867,2]
[329150723,1718140247255,-150.0,0.00021873,2]
[329150725,1718140247266,-150.0,0.00021874,2]
[329150727,1718140247279,-150.0,0.00021874,2]
[329150729,1718140247290,-150.0,0.0002188,2]
[329150731,1718140247300,-150.0,0.0002188,2]
[329150733,1718140247313,-150.0,0.00021881,2]
[329150735,1718140247324,-150.527,0.00021881,2]
[329150738,1718140247336,-252.946,0.00021881,2]
[329150740,1718140247347,-165.619,0.00021881,2]
[329150741,1718140247357,-150.0,0.00021881,2]
[329150744,1718140247368,-150.641,0.00021881,2]
[329150745,1718140247378,-150.0,0.00021881,2]
[329150747,1718140247389,-150.467,0.00021881,2]
[329150749,1718140247400,-150.844,0.00021881,2]
[329150752,1718140247413,-151.273,0.00021881,2]
[329150754,1718140247423,-168.582,0.00021881,2]
[329150756,1718140247434,-247.815,0.00021881,2]
[329150758,1718140247445,-358.0,0.00021881,2]
[329150760,1718140247458,-978.0,0.00021881,2]
[329150762,1718140247468,-1830.0,0.00021881,2]
[329150764,1718140247479,-654.386,0.00021881,2]
[329150766,1718140247491,-1651.0,0.00021881,2]
[329150768,1718140247501,-1269.0,0.00021881,2]
[329150770,1718140247512,-441.0,0.00021881,2]
[329150772,1718140247523,-507.754,0.00021881,2]
[329150773,1718140247534,-447.0,0.00021881,2]
[329150775,1718140247546,-1163.225,0.00021881,2]
[329150777,1718140247557,-3176.0,0.00021881,2]
[329150779,1718140247569,-1304.0,0.00021881,2]
[329150781,1718140247583,-1978.0,0.00021881,2]
[329150783,1718140247594,-150.0,0.00021883,2]
[329150785,1718140247605,-215.83954416,0.00021885,2]
[329150787,1718140247616,-150.0,0.00021893,2]
[329150789,1718140247627,-3725.548,0.00021894,2]
[329150791,1718140247638,-150.0,0.00021896,2]
[329150793,1718140247650,-150.0,0.00021897,2]
[329150795,1718140247661,-150.0,0.00021897,2]
[329150797,1718140247672,-300.0,0.000219,7]
[329150799,1718140247682,-489.0,0.000219,4]
[329150801,1718140247694,-305.0,0.000219,2]
[329150803,1718140247705,-160.0,0.000219,2]
[329150805,1718140247716,-150.0,0.000219,3]
[329150807,1718140247727,-150.0,0.000219,3]
[329150809,1718140247738,-250.0,0.000219,2]
[329150811,1718140247749,-377.7,0.000219,2]
[329150813,1718140247760,-152.26,0.00021901,2]
[329150815,1718140247771,-150.0,0.00021901,2]
[329150817,1718140247782,-150.0,0.00021908,2]
[329150820,1718140247800,-150.0,0.00021909,2]
[329150822,1718140247815,-4716.3419239,0.00021911,2]
[329150824,1718140247826,-96178.8436733,0.00021911,2]
[329150826,1718140247839,-3558.1479169,0.00021911,2]
[329150828,1718140247853,-12257.226062,0.00021911,2]
[329150830,1718140247864,-268.7861636,0.00021915,2]
[329150832,1718140247875,-658.7426153,0.00021915,2]
[329150834,1718140247888,-363.44907945,0.00021915,7]
[329150836,1718140247899,-2336.43414592,0.00021915,2]
[329150838,1718140247910,-1110.38407718,0.00021916,2]
[329150840,1718140247922,-155.32932128,0.00021916,2]
[329150842,1718140247934,-447.30327148,0.00021917,2]
[329150844,1718140247945,-151.0,0.00021917,2]
[329150846,1718140247956,-157.006058,0.00021917,2]
[329150848,1718140247967,-500.0,0.00021917,2]
[329150850,1718140247981,-525.07901113,0.00021917,2]
[329150852,1718140247992,-500.0,0.00021917,2]
[329150854,1718140248004,-500.0,0.00021917,2]
[329150856,1718140248016,-905.94,0.00021917,2]
[329150858,1718140248028,-227.18485074,0.00021917,2]
[329150933,1718140248955,-272.81514926,0.00021917,2]
[329150935,1718140248965,-500.0,0.00021917,2]
[329150937,1718140248975,-814.21,0.00021917,2]
[329150939,1718140248986,-500.0,0.00021917,2]
[329150941,1718140248996,-151.0,0.00021917,2]
[329150943,1718140249007,-500.0,0.00021917,2]
[329150945,1718140249018,-231.55055774,0.00021917,2]
[329150947,1718140249031,-268.44944226,0.00021917,2]
[329150949,1718140249042,-500.0,0.00021917,2]
[329150951,1718140249052,-872.41,0.00021917,2]
[329150953,1718140249063,-500.0,0.00021917,2]
[329150955,1718140249073,-500.0,0.00021917,2]
[329150957,1718140249084,-500.0,0.00021917,2]
[329150959,1718140249094,-500.0,0.00021917,2]